bitfinex-derivatives/quotes_BNBF0:USTF0_20250111
["timestamp","ask_amount","ask_price","bid_price","bid_amount"]
[1736626661273,0.26356616,697.81,696.25,0.28725314]
[1736626661472,1.07479385,697.72,696.38,1.28588077]
[1736626661772,1.07479385,697.72,696.39,0.28719539]
[1736626662465,1.07479385,697.71,696.39,0.28719539]
[1736626663073,1.07479385,697.7,696.39,1.57307616]
[1736626663870,0.8885026,697.97,696.39,1.57307616]
[1736626663871,1.07479385,697.69,696.4,1.28588077]
[1736626664070,1.07479385,697.69,696.41,0.28718714]
[1736626664675,1.07479385,697.69,696.41,1.57306791]
[1736626667176,1.07479385,697.66,696.42,1.28588077]
[1736626667379,1.07479385,697.66,696.43,0.28717889]
[1736626668180,1.07479385,697.62,696.43,0.28717889]
[1736626669183,1.07479385,697.6,696.43,0.28717889]
[1736626671782,1.07479385,697.6,696.43,3.33992386]
[1736626671984,1.07479385,697.59,696.43,7.46018597]
[1736626672182,1.07479385,697.59,696.44,2.83438134]
[1736626672385,1.07479385,697.59,696.45,0.28717065]
[1736626673683,1.07479385,697.59,696.45,3.33991562]
[1736626673884,1.07479385,697.59,696.45,6.17429696]
[1736626674084,1.07479385,697.59,696.46,2.83438134]
[1736626674283,1.07479385,697.59,696.47,0.2871624]
[1736626675383,0.8885026,697.97,696.47,0.2871624]
[1736626675384,1.07479385,697.63,696.47,0.2871624]
[1736626676582,1.07479385,697.7,696.47,0.2871624]
[1736626679388,1.07479385,697.69,696.47,0.2871624]
[1736626681284,1.07479385,697.72,696.47,0.2871624]
[1736626682485,1.07479385,697.71,696.47,0.2871624]
[1736626684291,1.07479385,697.65,696.47,0.2871624]
[1736626685394,1.07479385,697.63,696.47,0.2871624]
[1736626686595,1.07479385,697.69,696.47,0.2871624]
[1736626687595,1.07479385,697.67,696.47,0.2871624]
[1736626688495,1.07479385,697.68,696.47,0.2871624]
[1736626690698,1.07479385,697.73,696.47,0.2871624]
[1736626691999,1.07479385,697.72,696.47,0.2871624]
[1736626693706,1.07479385,697.73,696.47,0.2871624]
[1736626694302,1.07479385,697.74,696.47,0.2871624]
[1736626695296,1.07479385,697.73,696.47,0.2871624]
[1736626696501,1.07479385,697.67,696.47,0.2871624]
[1736626697400,1.07479385,697.7,696.47,0.2871624]
[1736626698001,1.07479385,697.72,696.47,0.2871624]
[1736626698901,0.28654116,697.98,696.47,0.2871624]
[1736626698902,1.07479385,697.71,696.47,0.2871624]
[1736626699803,1.07479385,697.72,696.47,0.2871624]
[1736626700800,1.07479385,697.7,696.47,0.2871624]
[1736626701598,1.07479385,697.71,696.47,0.2871624]
[1736626703504,1.07479385,697.7,696.47,0.2871624]
[1736626705715,1.07479385,697.71,696.47,0.2871624]
[1736626707710,0.28654116,697.98,696.47,0.2871624]
[1736626707711,1.07479385,697.72,696.47,0.2871624]
[1736626709412,1.07479385,697.66,696.47,0.2871624]
[1736626710310,1.9635078,697.97,696.47,0.2871624]
[1736626710311,1.07479385,697.68,696.47,0.2871624]
[1736626711012,1.07479385,697.67,696.47,0.2871624]
[1736626713117,1.07479385,697.66,696.47,0.2871624]
[1736626714515,1.07479385,697.73,696.47,0.2871624]
[1736626715709,1.07479385,697.74,696.47,0.2871624]
[1736626716715,0.28654116,697.98,696.47,0.2871624]
[1736626716716,1.07479385,697.76,696.47,0.2871624]
[1736626717517,1.07479385,697.75,696.47,0.2871624]
[1736626718917,1.07479385,697.77,696.47,0.2871624]
[1736626719819,1.07479385,697.76,696.47,0.2871624]
[1736626720717,1.07479385,697.74,696.47,1.57304317]
[1736626721617,1.07479385,697.71,696.47,1.57304317]
[1736626721821,1.07479385,697.71,696.47,0.2871624]
[1736626722618,1.07479385,697.72,696.47,0.2871624]
[1736626723422,1.07383863,697.94,696.47,0.2871624]
[1736626723423,1.07479385,697.73,696.47,0.2871624]
[1736626724219,1.07479385,697.71,696.47,0.2871624]
[1736626725125,1.07479385,697.72,696.47,0.2871624]
[1736626729429,1.07479385,697.76,696.47,0.2871624]
[1736626730925,1.07479385,697.75,696.48,1.28588077]
[1736626731230,1.07479385,697.75,696.49,0.28715415]
[1736626731829,1.07479385,697.83,696.49,0.28715415]
[1736626735629,1.07479385,697.77,696.49,0.28715415]
[1736626736637,1.07479385,697.76,696.49,0.28715415]
[1736626737537,1.07479385,697.77,696.49,0.28715415]
[1736626739439,1.07479385,697.76,696.49,0.28715415]
[1736626741435,1.07479385,697.67,696.49,0.28715415]
[1736626743241,1.07479385,697.69,696.49,0.28715415]
[1736626744142,1.07479385,697.73,696.49,0.28715415]
[1736626747340,1.07479385,697.72,696.49,1.57303492]
[1736626748440,1.07479385,697.72,696.49,2.57520156]
[1736626748640,1.07479385,697.72,696.49,4.41035818]
[1736626749643,1.07479385,697.71,696.5,1.28588077]
[1736626749943,1.07479385,697.71,696.51,0.28714591]
[1736626750438,1.07479385,697.71,696.51,1.28931255]
[1736626750639,1.07479385,697.71,696.51,3.12446917]
[1736626751441,0.88932145,697.97,696.51,3.12446917]
[1736626751442,1.07479385,697.66,696.51,3.12446917]
[1736626752243,1.07479385,697.66,696.51,0.28714591]
[1736626753242,1.07479385,697.63,696.51,1.57302668]
[1736626756543,1.07479385,697.63,696.51,4.62577165]
[1736626756742,1.07479385,697.63,696.52,2.83732326]
[1736626756942,1.07479385,697.63,696.53,0.28713766]
[1736626757939,1.07479385,697.64,696.53,1.57301843]
[1736626758139,1.07479385,697.64,696.53,4.41034169]
[1736626759143,1.07479385,697.64,696.54,3.05274497]
[1736626759344,1.07479385,697.64,696.55,0.28712942]
[1736626759543,1.07479385,697.64,696.55,3.12445268]
[1736626761044,1.07479385,697.65,696.55,3.12445268]
[1736626761946,1.07479385,697.66,696.55,3.12445268]
[1736626762347,1.07479385,697.66,696.55,6.17719765]
[1736626762541,1.07479385,697.66,696.56,2.83732326]
[1736626762945,1.07479385,697.67,696.57,0.28712117]
[1736626766044,1.07479385,697.71,696.57,0.28712117]
[1736626770450,1.07479385,697.72,696.57,0.28712117]
[1736626771447,1.07479385,697.69,696.58,1.28588077]
[1736626771650,1.07479385,697.69,696.59,0.28711293]
[1736626773753,1.07479385,697.65,696.59,0.28711293]
[1736626774550,1.07479385,697.64,696.59,0.28711293]
[1736626776655,1.07479385,697.65,696.59,0.28711293]
[1736626777454,0.28654116,697.98,696.59,0.28711293]
[1736626801867,1.07479385,698.21,696.59,0.28711293]
[1736626802066,0.26345345,698.2,696.59,0.28711293]
[1736626802372,0.2634483,698.19,696.59,0.28711293]
[1736626802575,0.2634483,698.18,696.59,0.28711293]
[1736626802874,0.2634483,698.17,696.59,0.28711293]
[1736626803169,1.49670445,698.54,696.59,0.28711293]
[1736626803170,0.2634483,698.16,696.59,0.28711293]
[1736626803370,0.2634483,698.15,696.59,0.28711293]
[1736626803567,0.2634483,698.14,696.59,0.28711293]
[1736626803774,1.07479385,698.24,696.59,0.28711293]
[1736626803970,0.26344373,698.23,696.59,0.28711293]
[1736626804169,0.26344373,698.22,696.59,0.28711293]
[1736626804374,0.26344373,698.21,696.59,0.28711293]
[1736626804670,0.26344373,698.2,696.59,0.28711293]
[1736626804868,0.26344373,698.19,696.59,0.28711293]
[1736626805072,1.07479385,698.26,696.59,0.28711293]
[1736626805273,0.26344767,698.25,696.59,0.28711293]
[1736626805769,1.07479385,698.29,696.59,0.28711293]
[1736626805971,0.26344759,698.28,696.59,0.28711293]
[1736626807377,1.07479385,698.27,696.59,0.28711293]
[1736626808380,1.07479385,698.37,696.59,0.28711293]
[1736626808675,0.26344558,698.36,696.59,0.28711293]
[1736626809080,1.07479385,698.35,696.59,0.28711293]
[1736626810183,1.07479385,698.32,696.59,0.28711293]
[1736626811181,1.07479385,698.2,696.59,0.28711293]
[1736626811982,1.07479385,698.13,696.59,0.28711293]
[1736626814481,1.07479385,698.15,696.59,0.28711293]
[1736626815286,1.07479385,698.16,696.59,0.28711293]
[1736626816082,1.07479385,698.17,696.59,0.28711293]
[1736626816584,1.07479385,698.2,696.59,0.28711293]
[1736626817988,1.07479385,698.17,696.59,0.28711293]
[1736626818785,1.07008202,698.17,696.59,0.28711293]
[1736626819185,1.07383863,698.52,696.59,0.28711293]
[1736626819387,0.54972322,698.51,696.59,0.28711293]
[1736626819586,0.54972732,698.5,696.59,0.28711293]
[1736626819786,0.54973142,698.49,696.59,0.28711293]
[1736626819988,0.54973552,698.48,696.59,0.28711293]
[1736626820193,0.26339948,698.47,696.59,0.28711293]
[1736626820990,0.28634424,698.46,696.59,0.28711293]
[1736626821185,0.26339948,698.45,696.59,0.28711293]
[1736626821486,0.26341401,698.45,696.59,0.28711293]
[1736626824183,0.26341859,698.44,696.59,0.28711293]
[1736626824385,0.26341859,698.43,696.59,0.28711293]
[1736626824586,0.26341859,698.42,696.59,0.28711293]
[1736626824786,0.26341859,698.41,696.59,0.28711293]
[1736626824987,0.26341859,698.4,696.59,0.28711293]
[1736626825183,0.26341859,698.39,696.59,0.28711293]
[1736626825382,0.26341859,698.38,696.59,0.28711293]
[1736626825587,0.28634424,698.46,696.59,0.28711293]
[1736626825588,0.26341859,698.37,696.59,0.28711293]
[1736626825784,0.26341859,698.36,696.59,0.28711293]
[1736626825986,0.26341859,698.35,696.59,0.28711293]
[1736626826187,0.26341212,698.34,696.59,0.28711293]
[1736626826389,0.26341212,698.33,696.59,0.28711293]
[1736626826585,0.28634424,698.46,696.59,0.28711293]
[1736626826789,0.26340671,698.45,696.59,0.28711293]
[1736626827987,1.07383863,698.37,696.62,1.28588077]
[1736626828184,0.26340671,698.36,696.64,0.28709232]
[1736626829193,1.33724534,698.36,696.64,1.57297309]
[1736626829387,0.26340671,698.35,696.64,1.57297309]
[1736626829592,0.26341059,698.34,696.64,1.57297309]
[1736626829785,0.26341059,698.33,696.64,1.57297309]
[1736626829988,0.26341059,698.32,696.65,1.28588077]
[1736626830289,0.26340694,698.31,696.67,0.28707996]
[1736626830488,0.26340694,698.3,696.67,0.28707996]
[1736626830687,0.26340694,698.29,696.67,0.28707996]
[1736626830895,0.26340694,698.28,696.67,0.28707996]
[1736626831096,0.26340694,698.27,696.67,0.28707996]
[1736626831291,0.26340694,698.26,696.67,0.28707996]
[1736626831496,0.26340694,698.25,696.67,0.28707996]
[1736626831799,0.26340694,698.24,696.67,0.28707996]
[1736626831998,0.26340694,698.23,696.67,0.28707996]
[1736626832195,0.26340694,698.22,696.67,0.28707996]
[1736626832392,0.26340694,698.21,696.67,0.28707996]
[1736626832595,1.07383863,698.37,696.67,0.28707996]
[1736626832794,0.26340641,698.36,696.67,0.28707996]
[1736626832998,1.07383863,698.33,696.73,1.28588077]
[1736626833200,0.26340641,698.32,696.73,1.28588077]
[1736626833692,0.26340641,698.32,696.75,0.287047]
[1736626834097,0.26340641,698.31,696.75,0.287047]
[1736626834297,0.26340641,698.3,696.75,0.287047]
[1736626834596,0.26340641,698.29,696.75,0.287047]
[1736626834796,0.26340641,698.28,696.75,0.287047]
[1736626834998,0.26341902,698.27,696.75,0.287047]
[1736626835195,1.07383863,698.45,696.75,0.287047]
[1736626835196,0.26341902,698.26,696.75,0.287047]
[1736626835400,1.07383863,698.45,696.75,0.287047]
[1736626835598,8.60687457,705.78,696.75,0.287047]
[1736626835599,1.62361188,698.44,696.75,0.287047]
[1736626835900,0.54977735,698.43,696.75,0.287047]
[1736626836099,0.26342081,698.42,696.75,0.287047]
[1736626836292,0.28636474,698.41,696.75,0.287047]
[1736626836490,0.26342081,698.4,696.75,0.287047]
[1736626836699,0.28637294,698.39,696.75,0.287047]
[1736626836898,0.26342081,698.38,696.75,0.287047]
[1736626837496,0.28637294,698.39,696.75,0.287047]
[1736626844105,1.49648991,698.54,695.86,1.28588077]
[1736626844505,0.26344543,698.53,695.87,1.82740966]
[1736626844708,0.26344543,698.52,695.86,1.28588077]
[1736626844903,0.26344543,698.51,695.86,1.28588077]
[1736626845102,1.07383863,698.26,696.55,1.28588077]
[1736626845301,0.26344543,698.25,696.55,1.28588077]
[1736626846209,1.07383863,698.23,696.52,1.28588077]
[1736626846501,0.26344543,698.22,696.52,1.28588077]
[1736626846705,0.26345405,698.21,696.52,1.28588077]
[1736626846901,0.26345405,698.2,696.52,1.28588077]
[1736626847103,0.26345405,698.19,696.52,1.28588077]
[1736626847306,0.26345405,698.18,696.54,1.28588077]
[1736626847505,0.26345405,698.17,696.54,1.28588077]
[1736626847702,0.26345405,698.16,696.54,1.28588077]
[1736626847901,1.07383863,698.21,696.54,1.28588077]
[1736626848101,0.26345451,698.2,696.54,1.28588077]
[1736626848507,0.26345451,698.2,696.53,1.28588077]
[1736626848703,1.07383863,698.29,696.53,1.28588077]
[1736626848908,0.26346656,698.28,696.53,1.28588077]
[1736626849708,0.26346656,698.28,696.44,2.82586212]
[1736626849911,0.26346656,698.27,696.44,2.82586212]
[1736626850110,0.26346656,698.26,696.44,2.82586212]
[1736626850306,0.26346656,698.25,696.41,2.82586212]
[1736626850503,0.26346656,698.24,696.41,2.82586212]
[1736626850705,0.26346656,698.23,696.41,2.82586212]
[1736626850909,0.26346656,698.22,696.41,2.82586212]
[1736626851106,1.07383863,698.39,696.41,2.82586212]
[1736626851409,0.26346635,698.38,696.41,2.82586212]
[1736626851710,0.26346583,698.37,696.41,2.82586212]
[1736626851911,0.26346583,698.36,696.37,2.82586212]
[1736626852212,0.26346583,698.35,696.37,2.82586212]
[1736626852412,0.26346583,698.34,696.37,2.82586212]
[1736626852611,0.26346583,698.33,696.37,2.82586212]
[1736626852912,1.49679565,698.4,696.37,2.82586212]
[1736626852913,0.26346583,698.32,696.37,2.82586212]
[1736626853112,0.26346583,698.31,696.37,2.82586212]
[1736626853312,0.26346583,698.3,696.3,2.82586212]
[1736626853514,0.26346583,698.29,696.3,2.82586212]
[1736626853713,0.26346583,698.28,696.3,2.82586212]
[1736626853913,0.26346583,698.27,696.3,2.82586212]
[1736626854115,0.26346583,698.26,696.3,2.82586212]
[1736626854306,0.26346975,698.25,696.3,2.82586212]
[1736626854510,0.26346975,698.24,696.29,2.82586212]
[1736626854711,0.26346975,698.23,696.29,2.82586212]
[1736626855011,0.26346743,698.22,696.29,2.82586212]
[1736626855210,1.49679565,698.4,696.29,2.82586212]
[1736626855211,0.26346743,698.21,696.29,2.82586212]
[1736626855407,0.26346743,698.2,696.29,2.82586212]
[1736626855610,1.49679565,698.4,696.29,2.82586212]
[1736626855815,0.26346934,698.39,696.3,1.28588077]
[1736626856313,0.26346934,698.39,696.3,4.31623176]
[1736626856513,0.26346934,698.39,696.31,2.82586212]
[1736626856708,0.26346934,698.39,696.32,1.28588077]
[1736626857113,1.49679565,698.4,696.32,1.28588077]
[1736626857114,0.26347133,698.38,696.32,1.28588077]
[1736626857315,0.26347133,698.37,696.32,4.31623176]
[1736626857509,0.26347133,698.36,696.33,2.82586212]
[1736626857714,0.26347133,698.35,696.33,2.82586212]
[1736626857911,0.26347133,698.34,696.33,2.82586212]
[1736626858215,0.26347133,698.33,696.33,2.82586212]
[1736626858416,0.26347133,698.32,696.33,2.82586212]
[1736626858616,0.26347133,698.31,696.33,2.82586212]
[1736626858816,0.26347133,698.3,696.33,2.82586212]
[1736626859012,0.26347133,698.29,696.33,2.82586212]
[1736626859215,0.26347133,698.28,696.32,2.82586212]
[1736626859416,0.26347133,698.27,696.37,1.28588077]
[1736626859616,0.26347133,698.26,696.37,1.28588077]
[1736626859811,0.26346719,698.25,696.37,1.28588077]
[1736626860013,0.26346719,698.24,696.37,1.28588077]
[1736626860212,0.26346719,698.23,696.37,1.28588077]
[1736626860415,0.26346719,698.22,696.39,1.28588077]
[1736626860711,0.26346719,698.21,696.39,1.28588077]
[1736626860916,0.26346719,698.2,696.39,1.28588077]
[1736626861118,0.26346719,698.19,696.39,1.28588077]
[1736626861316,0.26346719,698.18,696.39,1.28588077]
[1736626861520,0.26346719,698.17,696.39,1.28588077]
[1736626861723,0.26346914,698.16,696.39,1.28588077]
[1736626862022,0.26346914,698.15,696.39,1.28588077]
[1736626862323,1.49679565,698.4,696.39,1.28588077]
[1736626862517,0.26346902,698.39,696.39,1.28588077]
[1736626862721,1.07383863,698.38,696.42,1.28588077]
[1736626862922,0.26346902,698.37,696.42,1.28588077]
[1736626863623,0.26346902,698.37,696.36,2.82586212]
[1736626863822,0.26346902,698.36,696.36,2.82586212]
[1736626864018,0.26346902,698.35,696.36,2.82620204]
[1736626864229,0.26346902,698.34,696.3,2.82620204]
[1736626864424,1.49679565,698.4,696.3,2.82620204]
[1736626864621,0.26347444,698.39,696.3,2.82620204]
[1736626865124,0.26347444,698.39,696.3,1.82740966]
[1736626865425,0.26347444,698.39,696.16,2.82608208]
[1736626866729,0.26347444,698.39,696.11,2.82608208]
[1736626867126,1.49679565,698.4,696.11,2.82608208]
[1736626867326,0.5498424,698.39,696.22,0.28726551]
[1736626867529,0.26346946,698.38,696.22,0.28726551]
[1736626869830,0.28638114,698.37,696.22,0.28726551]
[1736626870031,0.2634638,698.36,696.22,0.28726551]
[1736626870733,0.26346329,698.35,696.22,0.28726551]
[1736626870930,0.26346329,698.34,696.22,0.28726551]
[1736626871125,0.26346329,698.33,696.22,0.28726551]
[1736626871330,0.54986493,698.32,696.22,0.28726551]
[1736626871632,0.26346329,698.31,696.22,0.28726551]
[1736626872830,0.26346579,698.3,696.22,0.28726551]
[1736626873035,0.28640164,698.32,696.22,0.28726551]
[1736626873036,0.54987974,698.29,696.22,0.28726551]
[1736626873236,0.26346579,698.28,696.22,0.28726551]
[1736626874438,0.26346579,698.28,696.26,1.28588077]
[1736626874633,0.26346579,698.28,696.36,0.28720776]
[1736626875038,0.28642215,698.27,696.36,0.28720776]
[1736626875239,0.26346579,698.26,696.36,0.28720776]
[1736626875438,1.49679565,698.4,696.36,0.28720776]
[1736626875439,0.28643036,698.25,696.36,1.57308853]
[1736626875638,0.26346532,698.24,696.36,1.57308853]
[1736626876240,0.28643856,698.23,696.46,1.28588077]
[1736626876439,0.26346532,698.22,696.46,1.28588077]
[1736626876639,0.26346532,698.22,696.48,0.28715828]
[1736626877242,1.07383863,698.18,696.59,1.28588077]
[1736626877441,0.26346532,698.17,696.59,1.28588077]
[1736626878139,0.26346532,698.17,696.6,1.28588077]
[1736626878140,1.07383863,698.16,696.6,1.28588077]
[1736626878341,0.26346766,698.15,696.6,1.28588077]
[1736626878741,0.26346766,698.15,696.61,0.28710469]
[1736626878942,1.07383863,698.16,696.61,0.28710469]
[1736626878943,0.26346544,698.14,696.61,0.28710469]
[1736626879141,0.26346544,698.13,696.69,1.28588077]
[1736626879345,0.26346544,698.12,696.7,0.2870676]
[1736626879545,0.26346544,698.11,696.7,0.2870676]
[1736626879746,0.26346544,698.1,696.7,0.2870676]
[1736626879948,0.26346544,698.09,696.7,0.2870676]
[1736626880249,0.26346544,698.08,696.74,1.28588077]
[1736626880450,0.26346544,698.07,696.74,1.28588077]
[1736626880649,0.26346544,698.06,696.74,1.28588077]
[1736626880851,0.26346544,698.05,696.74,1.28588077]
[1736626881149,1.07383863,698.14,696.74,1.28588077]
[1736626881349,0.26346656,698.13,696.75,0.287047]
[1736626881847,0.26346656,698.13,696.75,1.57292777]
[1736626883550,1.33730519,698.13,696.75,1.57292777]
[1736626883746,1.07383863,698.13,696.75,1.57292777]
[1736626884051,0.26346748,698.12,696.75,1.57292777]
[1736626885446,1.07383863,698.11,696.77,1.28588077]
[1736626885646,0.26346748,698.1,696.77,1.28588077]
[1736626885846,0.26346748,698.1,696.78,0.28703464]
[1736626886449,1.07383863,698.03,696.78,0.28703464]
[1736626887149,1.07383863,698.04,696.78,0.28703464]
[1736626888053,1.07383863,698.11,696.78,0.28703464]
[1736626888354,0.26346318,698.1,696.78,0.28703464]
[1736626889354,0.2634621,698.09,696.78,0.28703464]
[1736626890155,1.33730073,698.09,696.78,0.28703464]
[1736626890354,1.07383863,698.09,696.78,0.28703464]
[1736626891157,1.07383863,698.13,696.78,0.28703464]
[1736626892660,0.26344934,698.12,696.78,0.28703464]
[1736626892860,1.07383863,698.15,696.78,0.28703464]
[1736626893161,0.26345133,698.14,696.78,0.28703464]
[1736626893662,0.26345133,698.13,696.78,0.28703464]
[1736626893860,1.07383863,698.18,696.78,0.28703464]
[1736626894055,0.263448,698.17,696.78,0.28703464]
[1736626894860,0.26344747,698.16,696.78,0.28703464]
[1736626895057,0.26344747,698.15,696.78,0.28703464]
[1736626895255,0.26344747,698.14,696.78,0.28703464]
[1736626895454,1.07383863,698.19,696.78,0.28703464]
[1736626895658,0.26344635,698.18,696.78,0.28703464]
[1736626896062,0.26344635,698.17,696.78,0.28703464]
[1736626896262,0.26344635,698.16,696.78,0.28703464]
[1736626896464,0.26344635,698.15,696.78,0.28703464]
[1736626896663,0.26344635,698.14,696.78,0.28703464]
[1736626896863,0.26344635,698.13,696.78,0.28703464]
[1736626897060,1.07383863,698.21,696.78,0.28703464]
[1736626897061,0.26344635,698.12,696.78,0.28703464]
[1736626897261,0.26344635,698.11,696.78,0.28703464]
[1736626897465,0.26344635,698.1,696.78,0.28703464]
[1736626897665,0.26344635,698.09,696.78,0.28703464]
[1736626897870,1.07383863,698.15,696.78,0.28703464]
[1736626898065,0.26344633,698.14,696.78,0.28703464]
[1736626898370,0.26345115,698.13,696.78,0.28703464]
[1736626898667,0.26345115,698.12,696.78,0.28703464]
[1736626898864,0.26345115,698.11,696.78,0.28703464]
[1736626899061,0.26345115,698.1,696.78,0.28703464]
[1736626899265,0.26345115,698.09,696.78,0.28703464]
[1736626899467,1.07383863,698.15,696.78,0.28703464]
[1736626899667,0.26344001,698.14,696.78,0.28703464]
[1736626899866,0.26344001,698.13,696.78,0.28703464]
[1736626900166,0.26344001,698.12,696.78,0.28703464]
[1736626900369,0.26343621,698.12,696.78,0.28703464]
[1736626900761,0.26343621,698.17,696.78,0.28703464]
[1736626901160,0.26343621,698.17,696.79,1.28588077]
[1736626901364,0.26343621,698.16,696.79,1.28588077]
[1736626901565,0.26343621,698.15,696.79,1.28588077]
[1736626901766,1.07383863,698.2,696.79,1.28588077]
[1736626901968,0.2634243,698.19,696.79,1.28588077]
[1736626902162,0.2634243,698.19,696.78,0.28703464]
[1736626902866,1.07383863,698.2,696.78,0.28703464]
[1736626903068,0.26342203,698.19,696.78,0.28703464]
[1736626903269,0.26342203,698.18,696.78,0.28703464]
[1736626903567,0.26342203,698.17,696.78,0.28703464]
[1736626903867,1.07383863,698.22,696.78,0.28703464]
[1736626904062,0.26342472,698.21,696.78,0.28703464]
[1736626904767,0.26342472,698.2,696.78,0.28703464]
[1736626904967,0.26342472,698.19,696.78,0.28703464]
[1736626905266,0.26342472,698.18,696.78,0.28703464]
[1736626905466,0.26342472,698.17,696.78,0.28703464]
[1736626905761,1.36027719,698.23,696.78,0.28703464]
[1736626905966,0.26342322,698.22,696.78,0.28703464]
[1736626908470,0.28643856,698.23,696.78,0.28703464]
[1736626908669,0.26342856,698.22,696.78,0.28703464]
[1736626910873,0.28643856,698.23,696.78,0.28703464]
[1736626911768,0.26342925,698.22,696.78,0.28703464]
[1736626911974,0.28643856,698.23,696.78,0.28703464]
[1736626912175,0.26342813,698.22,696.78,0.28703464]
[1736626912871,0.28643856,698.23,696.78,0.28703464]
[1736626913072,0.26342825,698.22,696.78,0.28703464]
[1736626914172,0.26343152,698.21,696.78,0.28703464]
[1736626914369,0.28643856,698.23,696.78,0.28703464]
[1736626914573,0.26343152,698.22,696.78,0.28703464]
[1736626916975,0.26342954,698.21,696.78,0.28703464]
[1736626917270,0.26342954,698.2,696.78,0.28703464]
[1736626917471,0.26342954,698.19,696.78,0.28703464]
[1736626917671,0.26342954,698.18,696.78,0.28703464]
[1736626917869,0.26342954,698.22,696.78,0.28703464]
[1736626918175,0.26342954,698.21,696.78,0.28703464]
[1736626918376,0.26342954,698.2,696.78,0.28703464]
[1736626918578,0.26342954,698.19,696.78,0.28703464]
[1736626918774,0.26342954,698.18,696.78,0.28703464]
[1736626918973,0.26342954,698.17,696.78,0.28703464]
[1736626919180,0.26342954,698.16,696.78,0.28703464]
[1736626919477,0.28643856,698.23,696.78,0.28703464]
[1736626919478,0.26342954,698.15,696.78,0.28703464]
[1736626919677,0.28643856,698.23,696.78,0.28703464]
[1736626919879,0.26343001,698.22,696.78,0.28703464]
[1736626920478,0.26342893,698.21,696.78,0.28703464]
[1736626920674,0.26342893,698.2,696.78,0.28703464]
[1736626920874,0.26342893,698.19,696.78,0.28703464]
[1736626921075,0.26342893,698.18,696.78,0.28703464]
[1736626921275,0.26342893,698.17,696.78,0.28703464]
[1736626921475,0.26342893,698.16,696.78,0.28703464]
[1736626921777,0.26343134,698.15,696.78,0.28703464]
[1736626921982,0.26343134,698.14,696.78,0.28703464]
[1736626922178,0.26343134,698.13,696.78,0.28703464]
[1736626922383,1.07383863,698.21,696.78,0.28703464]
[1736626922682,0.26342204,698.2,696.78,0.28703464]
[1736626923582,0.26342204,698.19,696.78,0.28703464]
[1736626923783,0.26342204,698.18,696.78,0.28703464]
[1736626924077,0.28643856,698.23,696.78,0.28703464]
[1736626924078,0.28643856,698.23,696.83,1.28588077]
[1736626924284,0.26341144,698.22,696.83,1.28588077]
[1736626924481,0.26341144,698.22,696.84,0.28700993]
[1736626925886,0.26341144,698.22,696.84,1.5728907]
[1736626927189,0.26341251,698.21,696.84,1.5728907]
[1736626927388,0.28643856,698.23,696.84,1.5728907]
[1736626927389,0.26341251,698.2,696.84,1.5728907]
[1736626927587,0.26341251,698.19,696.84,1.5728907]
[1736626927784,0.26341251,698.18,696.84,1.5728907]
[1736626927989,0.28643856,698.23,696.84,1.5728907]
[1736626928282,0.26341287,698.22,696.84,1.5728907]
[1736626929091,0.26341287,698.22,696.85,1.28588077]
[1736626929285,0.26341287,698.22,696.86,0.28700169]
[1736626929889,0.28643856,698.23,696.86,0.28700169]
[1736626929890,0.26341237,698.21,696.86,0.28700169]
[1736626930089,0.26341237,698.2,696.86,0.28700169]
[1736626930292,0.28643856,698.23,696.86,0.28700169]
[1736626930589,0.26340384,698.22,696.86,0.28700169]
[1736626930990,0.26340268,698.21,696.87,1.28588077]
[1736626931184,0.26340268,698.2,696.88,0.28699345]
[1736626931382,0.28643856,698.23,696.88,0.28699345]
[1736626931584,0.2634025,698.22,696.88,0.28699345]
[1736626935189,0.28643856,698.23,696.88,0.28699345]
[1736626937087,0.28643856,698.23,696.88,3.11334325]
[1736626939096,1.07350055,698.14,696.88,3.11334325]
[1736626940000,1.07350055,698.13,696.88,0.28699345]
[1736626940700,1.07350055,698.14,696.88,0.28699345]
[1736626941997,1.07350055,698.13,696.88,0.28699345]
[1736626942898,1.07350055,698.14,696.88,0.28699345]
[1736626946301,1.07350055,698.19,696.88,0.28699345]
[1736626947401,1.07350055,698.18,696.88,0.28699345]
[1736626948500,1.07350055,698.18,696.88,3.31734444]
[1736626948695,1.07350055,698.18,696.88,6.14369424]
[1736626948895,1.07350055,698.18,696.89,2.8263498]
[1736626949298,1.07350055,698.16,696.89,2.8263498]
[1736626949702,1.07350055,698.16,696.9,0.28698522]
[1736626950203,1.07350055,698.15,696.9,0.28698522]
[1736626951901,1.07350055,698.17,696.9,0.28698522]
[1736626952602,1.07350055,698.16,696.9,0.28698522]
[1736626953598,1.07350055,698.17,696.9,0.28698522]
[1736626954600,1.07350055,698.14,696.9,0.28698522]
[1736626955503,1.07350055,698.13,696.9,0.28698522]
[1736626956302,1.07350055,698.12,696.9,0.28698522]
[1736626957606,1.07350055,698.11,696.9,0.28698522]
[1736626958412,1.07350055,698.1,696.9,0.28698522]
[1736626959511,1.07350055,698.22,696.9,0.28698522]
[1736626961912,0.28643856,698.23,696.9,0.28698522]
[1736626961913,1.07350055,698.21,696.9,0.28698522]
[1736626962908,1.07350055,698.19,696.9,0.28698522]
[1736626964213,1.07350055,698.2,696.9,0.28698522]
[1736626968617,0.28643856,698.23,696.9,0.28698522]